Cogmind - Beta 14 @@@ ROGUE MODE // 2024.09.30 @ 16:54:20 Player: Some Pennies Result: Destroyed by TC-LFY(R) with Subdweller Beam Cannon Performance ------------- Evolutions (0) 0 Regions Visited (2) 400 Robots Destroyed (49) 245 Value Destroyed (948) 948 Prototype IDs (0) 0 Alien Tech Used (0) 0 Bonus (0) 0 TOTAL SCORE: 1593 Bonus ------- None Cogmind --------- Core Integrity 0/250 Matter 300/300 Energy 201/250 System Corruption 0% Temperature Cool (24) Movement Treading (320) Ox2 Location -10/Subcaves Parts ------- > --- POWER (1) -------- Ion Engine > --- PROPULSION (2) --- Light Treads Light Treads > --- UTILITY (2) ------ Huge Storage Unit Seismic Detector > --- WEAPON (2) ------- Subdweller Laser Beamcaster > --- INVENTORY (25) --- Subdweller Power Source Makeshift Power Source Makeshift Power Source Makeshift Leg Makeshift Leg Makeshift Leg Subdweller Monowheel Improved Heat Sink Improved Heat Sink Improved Heat Sink Improved Heat Sink Disposable Heat Sink Medium Storage Unit High-capacity Matter Pod (200) Improved Terrain Scanner Hacking Suite Makeshift System Shield Subdweller Laser Assault Rifle Battle Rifle Subdweller Shrapnel Launcher Subdweller Shrapnel Launcher Dirty Datajack (20) Datajack Mining Laser Peak State ------------ > --- POWER ------------ Subdweller Power Source > --- PROPULSION ------- Light Treads Makeshift Leg > --- UTILITY ---------- Huge Storage Unit Seismic Detector > --- WEAPON ----------- Subdweller Laser Beamcaster > --- INVENTORY -------- Subdweller Power Source Light Treads Light Treads Improved Heat Sink Improved Heat Sink Improved Heat Sink Improved Heat Sink Disposable Heat Sink Disposable Heat Sink Medium Storage Unit High-capacity Matter Pod Improved Terrain Scanner Hacking Suite Subdweller Laser Assault Rifle Battle Rifle Subdweller Shrapnel Launcher Subdweller Shrapnel Launcher Dirty Datajack Datajack Mining Laser [Rating: 20] Favorites ----------- Power Light Ion Engine Engine Light Ion Engine Propulsion Light Treads Treads Light Treads Leg Makeshift Leg Utility Huge Storage Unit Device Heat Sink Storage Huge Storage Unit Processor Targeting Computer Protection Scrap Shield Weapon Beam Cannon Energy Gun EM Pulse Gun Energy Cannon Beam Cannon Ballistic Cannon Bore Cannon Launcher Subdweller Shrapnel Launcher Special Weapon Mining Laser Build | -11 -10 -10 ------- Run | Yrd Mat Sub Slots Evolved . | . . . Power . | . . . Propulsion . | . . . Utility . | . . . Weapon . | . . . Parts Attached 41 | 8 11 22 Power 4 | 1 1 2 Engine 4 | 1 1 2 Core . | . . . Reactor . | . . . Propulsion 9 | 2 . 7 Treads 8 | 2 . 6 Leg 1 | . . 1 Wheel . | . . . Hover . | . . . Flight . | . . . Utility 12 | 3 4 5 Device 6 | 2 1 3 Storage 4 | 1 2 1 Processor 1 | . 1 . Hackware . | . . . Protection 1 | . . 1 Artifact . | . . . Weapon 16 | 2 6 8 Energy Gun 8 | 2 3 3 Energy Cannon 3 | . 2 1 Ballistic Gun . | . . . Ballistic Cannon 2 | . . 2 Launcher 2 | . . 2 Special Weapon 1 | . 1 . Impact Weapon . | . . . Slashing Weapon . | . . . Piercing Weapon . | . . . Special Melee Weapon . | . . . Unidentified Prototypes . | . . . Parts Lost 9 | . 2 7 Power 1 | . . 1 Propulsion 3 | . . 3 Utility 1 | . . 1 Weapon 4 | . 2 2 Highest Loss Streak 3 | . 1 3 To Critical Strikes . | . . . Average Slot Usage (%) 98 | . 99 97 Engine 13 | . 14 13 Treads 27 | . 28 27 Device 10 | . 9 12 Storage 13 | . 14 12 Processor 2 | . 4 . Energy Gun 13 | . 9 20 Energy Cannon 13 | . 17 6 Peak Build Rating 20 | 9 8 20 Average Rating 10 | 6 7 15 On Entrance 5 | . 7 8 Naked Turns . | . . . Heaviest Build 99 | 15 90 99 Greatest Support 40 | 40 40 40 Greatest Overweight (x) 4 | 1 2 4 Average Overweight (x) 1 | . . 1 Largest Inventory Capacity 25 | 8 25 25 Average Capacity 18 | 7 17 22 Most Carried 25 | 5 14 25 Average Carried 14 | 2 11 19 Final Capacity 25 | 8 25 25 Final Carried 25 | 5 14 25 Class Distribution -------------------- 67% | Mutant 32% | Scavenger-Mutant Dominant Class ---------------- Mutant | -10/Materials Scavenger-Mutant | -10/Subcaves Resources | -11 -10 -10 ----------- Run | Yrd Mat Sub Matter Collected 949 | 247 333 369 Remotely . | . . . Salvage Created 1682 | 154 895 633 Parts 101 | 10 54 37 Haulers Intercepted 2 | . 2 . Recyclers Shooed 3 | . 3 . Parts Field Recycled . | . . . Retrieved Matter . | . . . Parts Self-Destructed 12 | . . 12 Prevented . | . . . Kills | -11 -10 -10 ------- Run | Yrd Mat Sub Combat Hostiles Destroyed 28 | . 14 14 Guns 15 | . 12 3 Cannons 7 | . 1 6 AOE 6 | . 1 5 Classes Destroyed 10 | 2 7 1 Worker 4 | . 4 . Builder 2 | . 2 . Tunneler 5 | 5 . . Hauler 2 | . 2 . Recycler 3 | 1 2 . Operator 2 | . 2 . Watcher 3 | . 3 . Swarmer 11 | . 8 3 Grunt 6 | . 6 . Subdweller 11 | . . 11 Best Kill Streak 10 | 3 10 3 Combat Bots Only 5 | . 5 3 Max Kills in Single Turn 2 | 1 2 2 Gunslinging . | . . . Exploded 2 | . 1 2 Melee . | . . . Uniques/NPCs Destroyed . | . . . Combat | -11 -10 -10 -------- Run | Yrd Mat Sub Hostile Shots Fired 163 | . 65 98 Missed 52 | . 22 30 Damage Taken 1954 | 10 407 1537 Core 251 | 5 53 193 Absorbed by Shields . | . . . Core Remaining (%) 98 | 98 . . Volleys Fired 170 | 17 67 86 Largest 2 | 2 2 2 Hottest 140 | 80 120 140 Shots Fired 305 | 34 130 141 Gun 182 | 34 106 42 Cannon 119 | . 23 96 Launcher 3 | . . 3 Special 1 | . 1 . Kinetic 15 | . . 15 Thermal 157 | . 31 126 Explosive . | . . . Electromagnetic 133 | 34 99 . Robot Hit Streak 15 | 4 8 15 Robot Miss Streak 6 | 3 6 3 Penetration Max . | . . . Secondary Targets 1 | . 1 . Max Gunslinging Chain 1 | . 1 . Shots Hit Robots 173 | 18 70 85 Core Hits 70 | 6 35 29 Critical Kills 1 | . . 1 Critical Parts Destroyed . | . . . Critical Strikes 5 | 1 1 3 Destroy 3 | . . 3 Corrupt 2 | 1 1 . Melee Attacks . | . . . Impact . | . . . Slashing . | . . . Piercing . | . . . Sneak Attacks . | . . . Combat Hostiles . | . . . Follow-up Attacks . | . . . Damage Inflicted 3536 | 324 1254 1958 Guns 1491 | 243 850 398 Cannons 1470 | . 230 1240 Explosions 565 | 81 164 320 Melee . | . . . Ramming 10 | . 10 . Kinetic 430 | . . 430 Thermal 2036 | 81 427 1528 Explosive . | . . . Electromagnetic 1060 | 243 817 . Impact . | . . . Slashing . | . . . Piercing . | . . . Highest Corruption . | . . . Average Corruption . | . . . Corruption Purged . | . . . Corruption Blocked . | . . . Overload Shots . | . . . Overflow Damage 3 | . . 3 Projectiles . | . . . Explosions 3 | . . 3 Melee . | . . . Knockbacks 1 | . . 1 Impact . | . . . Kinetic 1 | . . 1 Secondary . | . . . Self-Inflicted Damage 11 | 11 . . Shots 1 | 1 . . Rammed 4 | . 4 . Targets Rammed 4 | . 4 . Kicked . | . . . Crushed . | . . . Highest Temperature 166 | 126 166 81 Average Temperature 38 | 35 44 25 Received Heat Transfer 426 | . 111 315 Siege Activations . | . . . Robots Corrupted 2 | . 2 . Combat Hostiles . | . . . Parts Fried 5 | 1 4 . Impact Corruptions . | . . . Robots Melted . | . . . Combat Hostiles . | . . . Parts Melted 3 | . . 3 Heat Transferred 3686 | 100 806 2780 Parts Sabotaged . | . . . Parts Stolen . | . . . Parts Stripped . | . . . Power Chain Reactions 6 | 2 4 . Alert | -11 -10 -10 ------- Run | Yrd Mat Sub Peak Influence 384 | 30 384 . Initial 19 | . 19 . Average 150 | 14 159 . Maximum Alert Level 1 | . 1 . Low Security (%) 80 | 100 79 . Level 1 19 | . 20 . Level 2 . | . . . Level 3 . | . . . Level 4 . | . . . Level 5 . | . . . High Security . | . . . Max Security . | . . . Squads Dispatched 3 | . 3 . Investigation 2 | . 2 . Extermination . | . . . Reinforcement 1 | . 1 . Assault . | . . . Garrison . | . . . Intercept . | . . . Searches Triggered . | . . . Construction Impeded . | . . . Haulers Reinforced . | . . . Active Scanning Responses . | . . . Cargo Convoy Interrupts . | . . . Stealth | -11 -10 -10 --------- Run | Yrd Mat Sub Distress Signals 2 | . 2 . Communications Jammed . | . . . Distress Signals . | . . . Times Spotted 47 | . 26 21 Peak Tracking Total 8 | . 8 6 Tactical Retreats 3 | . 3 . Traps | -11 -10 -10 ------- Run | Yrd Mat Sub Traps Triggered . | . . . Indirectly . | . . . Trap Hack Attempts . | . . . Triggered . | . . . Disarmed . | . . . Reprogrammed . | . . . Reused . | . . . Traps Extracted . | . . . Installed . | . . . Triggered 1 | . 1 . Machines | -11 -10 -10 ---------- Run | Yrd Mat Sub Machines Disabled 3 | . 3 . Max in Single Turn 2 | . 2 . Machines Repaired . | . . . Machines Dismantled . | . . . Machines Sabotaged . | . . . Overloaded Fab Kills . | . . . Hacking | -11 -10 -10 --------- Run | Yrd Mat Sub Machines Accessed 8 | . 8 . Terminals 6 | . 6 . Fabricators . | . . . Repair Stations . | . . . Recycling Units 2 | . 2 . Scanalyzers . | . . . Garrison Access . | . . . Total Hacks 31 | . 31 . Successful 20 | . 20 . Failed 10 | . 10 . Catastrophic . | . . . Database Lockouts 1 | . 1 . Manual 17 | . 17 . Terminals 26 | . 26 . Fabricators . | . . . Repair Stations . | . . . Recycling Units 5 | . 5 . Scanalyzers . | . . . Garrison Access . | . . . Terminal Hacks 10 | . 10 . Robot Analysis 2 | . 2 . Emergency Access Points 1 | . 1 . Alert Level 1 | . 1 . Locate Traps 3 | . 3 . Patrol Status 1 | . 1 . Zone Layout 2 | . 2 . Fabricator Hacks . | . . . Repair Station Hacks . | . . . Recycling Unit Hacks 1 | . 1 . Retrieve Components 1 | . 1 . Scanalyzer . | . . . Garrison Access Hacks . | . . . Unauthorized Hacks 9 | . 9 . Terminals 7 | . 7 . Botnet 1 | . 1 . Skim 6 | . 6 . Fabricators . | . . . Repair Stations . | . . . Recycling Units 2 | . 2 . Tunnel 2 | . 2 . Scanalyzers . | . . . Garrison Access . | . . . Data Cores Recovered . | . . . Used . | . . . Hacking Detections 6 | . 6 . Full Trace Events . | . . . Feedback Events . | . . . Feedback Blocked . | . . . Robot Schematics Acquired . | . . . Robots Built . | . . . Authchips . | . . . Time . | . . . Total Robot Build Rating . | . . . Part Schematics Acquired . | . . . Parts Built . | . . . Authchips . | . . . Time . | . . . Total Part Build Rating . | . . . Parts Repaired . | . . . Time . | . . . Parts Recycled . | . . . Recycled Matter . | . . . Retrieved Matter . | . . . Retrieved Components 9 | . 9 . Parts Scanalyzed . | . . . Part Schematics Acquired . | . . . Parts Damaged . | . . . Bothacking | -11 -10 -10 ------------ Run | Yrd Mat Sub Used RIF Installer . | . . . Robots Hacked . | . . . Non-combat . | . . . Combat . | . . . Robot Hacks Applied . | . . . Relay Couplers Released . | . . . Fabnet Peak Effective % . | . . . Robots Rewired . | . . . Allies Hacked . | . . . Hacks Repelled . | . . . Allies | -11 -10 -10 -------- Run | Yrd Mat Sub Total Allies . | . . . Largest Group . | . . . Highest-Rated Group . | . . . Highest-Rated Ally . | . . . Total Orders . | . . . Ally Attacks . | . . . Total Damage . | . . . Kills . | . . . Allies Corrupted . | . . . Allies Melted . | . . . Intel | -11 -10 -10 ------- Run | Yrd Mat Sub Robot Analysis Total 2 | . 2 . Derelict Logs Recovered 1 | . . 1 Drone Launches . | . . . Drone Recoveries . | . . . Exploration | -11 -10 -10 ------------- Run | Yrd Mat Sub Turns Passed 5809 | 233 3412 2164 Spaces Moved 2015 | 101 1307 607 Core 5 | 5 . . Treads 2009 | 96 1307 606 Legs 1 | . . 1 Wheels . | . . . Hover . | . . . Flight . | . . . Fastest Speed 50 | 50 160 160 Average Speed 246 | 156 227 301 Slowest Speed 480 | 160 320 480 Overloaded Moves . | . . . Propulsion Burnouts . | . . . Robots Hopped . | . . . Cave-ins Triggered . | . . . Exploration Rate (%) 52 | 7 99 52 Regions Visited 2 Branch Regions 1 Pre-discovered Areas 4 | . 4 . Known Exits Taken 1 | . 1 . Unknown Exits Taken 1 | 1 . . Scrap Searched 5 | . . 5 Spaces Dug 1 | . 1 . Terrain Destroyed 65 | 6 13 46 Melee . | . . . Projectile 4 | . 1 3 AOE 61 | 6 12 43 Terrain Rammed . | . . . Walls Destroyed . | . . . Machines Disabled . | . . . Actions | -11 -10 -10 --------- Run | Yrd Mat Sub Total 2552 | 138 1611 803 Wait 235 | 8 195 32 Move 2013 | 100 1306 607 Hop . | . . . Pick Up 52 | 5 18 29 Fast Attach 17 | 7 2 8 Attach 6 | . 2 4 Detach 1 | . . 1 Swap 18 | 1 7 10 Drop 30 | . 10 20 Fire 170 | 17 67 86 Melee . | . . . Ram . | . . . Kick . | . . . Crush 4 | . 4 . Escape Stasis . | . . . Rewire . | . . . Trap . | . . . Miscellaneous 6 | . . 6 Route ------- -11/Scrapyard -10/Materials (discovered 6 exits: *Mat x3 / *Min x2 / *Sub) -10/Subcaves (discovered 2 exits: *Mat x2) History --------- Turn | Location | Event 12 | -11/Scrapyard | Discovered new exit (range 16) 234 | -11/Scrapyard | Entered Materials 311 | -10/Materials | Build established: Mutant 493 | -10/Materials | Discovered new exit (range 8) 538 | -10/Materials | Central database locked down 1170 | -10/Materials | Discovered new exit (range 14) 1600 | -10/Materials | Identified exit to Materials 1677 | -10/Materials | Identified exit to Mines 1745 | -10/Materials | Identified exit to Subcaves 1805 | -10/Materials | Learned location of Storage (-7) 1857 | -10/Materials | Loaded intel: 12 trap records 1897 | -10/Materials | Learned location of 2 exits from Mines 1970 | -10/Materials | Learned Storage stockpile data 2023 | -10/Materials | Learned location of Mines (-9) 2085 | -10/Materials | Learned Storage non-interactive machine intel 3646 | -10/Materials | Entered Subcaves 3647 | -10/Subcaves | Identified exit to Materials 3772 | -10/Subcaves | Ambushed by swarm of Subdwellers 3785 | -10/Subcaves | Core integrity fell below 50% 3839 | -10/Subcaves | Lost 3 allies 3947 | -10/Subcaves | Lost 3 parts (1p1n1u) 4199 | -10/Subcaves | Discovered exit to Materials (range 7) 4255 | -10/Subcaves | Build established: Scavenger-Mutant 4551 | -10/Subcaves | Ambushed by Subdweller buried in earth 4552 | -10/Subcaves | Core integrity fell below 20% 4684 | -10/Subcaves | Shifting Twisted Machinery released Sub. Monowheel 4684 | -10/Subcaves | Shifting Twisted Machinery released Flamer 5108 | -10/Subcaves | Learned 2 Materials zone layouts 5638 | -10/Subcaves | Shifting Twisted Machinery released Sub. Monowheel 5677 | -10/Subcaves | Shifting Twisted Machinery released Hvy. Riot Gun 5810 | -10/Subcaves | Destroyed by TC-LFY(R) with Subdweller Beam Cannon Last Messages --------------- 04963_ Found 53 Matter. 04969_ Searching scrap... 04969_ Found Sub. Machine Gun. 04969_ Found Piercing Trap. 04969_ Found 52 Matter. 04973_ Searching scrap... 04973_ Found Battle Cannon. 04973_ Found 43 Matter. 04989_ Dropped Mak. Leg. 04989_ Acquired Sub. Monowheel. 05108_ Acquired derelict log, extracted data. Data stored: Materials zone layouts (x2). 05160_ Subatomizers dissect the Flamer. Sub. Monowheel falls loose from the Twisted Machinery. Hvy. Riot Gun falls loose from the Twisted Machinery. 05804_ TC-LFY(R) angrily emerges from the Twisted Machinery. 05805_ TC-LFY(R): "YOUGO!" Map ----- +----------------------------------------------------+ | | | | | | | | | | | | | | | ?????????????????????????????????????????????????? | | ?????????????????????????????????????????????????? | | ?????????????????????????????????????????????????? | | ?????????????????????????????????????????????????? | | ?????????????????????????????????????????????????? | | ?????????????????????????????????????????????????? | | ?????????????????????????????????????????????????? | | ?????????????????????????????????????????????????? | | ?????????????????????????????????????????????????? | | ?????????????????????????????????????????????????? | | ???????????????????????????##????????????????????? | | ??????????????????#????????<#????????????????????? | | ?????????????????# ???????#R#????????????????????? | | ??????????###???## ??????? ?????????????????????? | | ?????????## ### ? ???###? #?????????????????????? | | ##??????## ??? ##?# ## ####??????????????????? | | ######## ##??## ### < ##?????????????????? | | # # ## #### # ##????????????????? | | @ #????????????????? | | # # ## # #???????????? | | ### ## ### #? ##???????????? | | #?## #???# # #????????????? | | #?????????????????????? | | #### ## ## ### #?????????????????????? | | ##??######### ##?### #####?????????????????????? | | #???????????####?????###?????????????????????????? | | ?????????????????????????????????????????????????? | | ?????????????????????????????????????????????????? | | ?????????????????????????????????????????????????? | | ?????????????????????????????????????????????????? | | ?????????????????????????????????????????????????? | | ?????????????????????????????????????????????????? | | ?????????????????????????????????????????????????? | | ?????????????????????????????????????????????????? | | ?????????????????????????????????????????????????? | | ?????????????????????????????????????????????????? | | ?????????????????????????????????????????????????? | | ?????????????????????????????????????????????????? | | ?????????????????????????????????????????????????? | | ?????????????????????????????????????????????????? | | ?????????????????????????????????????????????????? | | ?????????????????????????????????????????????????? | | ?????????????????????????????????????????????????? | +----------------------------------------------------+ Best States ------------- Heat Dissipation 35 Coolant Potential 100 Energy Generation 15 Energy Capacity 250 Matter Stores 300 Matter Capacity 300 Sight Range 16 Terrain Scan Range 16 Terrain Scan Density 10 Armor Coverage 800 Evasion (%) 40 Targeting Accuracy 5 Recoil Reduction 2 Item Schematics ----------------- None Robot Schematics ------------------ None Fabricated ------------ Nothing Alien Tech Used ----------------- None Achievements -------------- None Challenges ------------ None Game ------ Seed PhaseWeaponRefractor Manual? 0 Play Time 00:21:47 Cumulative 347.1 hours Start 2024.09.30 @ 16:33:04 End 2024.09.30 @ 16:54:20 Sessions 1 Manual Loads 0 Difficulty Rogue Special Mode None Game No. 255 Rogue 250 Adventurer 5 Explorer 0 Win Type - Total 7 Types 4/0/3/0/0/0/0/0/0 Lore% 68 Gallery% 85 Achievement% 70 Wizard Run 0 Options --------- Layout 2 ASCII 0 Keyboard 0 Movement Mouse Keybinds 0 Fullscreen 2 Font 24/Smallcaps Map View 50x44 Zoom Use 0% Tactical HUD 1 Map Filters NONE Filters NONE Steam 1 RUN: abaf5664-e698-4d35-a0ea-8f9214264650